fUST/lending_fUST_20250817
["ID","MTS","AMOUNT","RATE_DAILY","PERIOD"]
[379707645,1755378643768,-483.06,0.0002043,2]
[379707647,1755378643777,-480.0,0.0002043,2]
[379707650,1755378643787,-480.0,0.0002043,2]
[379707652,1755378643798,-901.75,0.0002043,2]
[379707654,1755378643807,-744.84,0.0002043,2]
[379707656,1755378643816,-1107.05,0.0002043,2]
[379707658,1755378643825,-480.0,0.0002043,2]
[379707660,1755378643834,-480.0,0.0002043,2]
[379707662,1755378643843,-739.59,0.0002043,2]
[379707664,1755378643852,-480.0,0.0002043,2]
[379707666,1755378643861,-4060.46,0.0002043,2]
[379707667,1755378643871,-480.0,0.0002043,2]
[379707669,1755378643880,-812.0,0.0002043,2]
[379707671,1755378643890,-480.0,0.0002043,2]
[379707673,1755378643899,-480.0,0.0002043,2]
[379707675,1755378643908,-480.0,0.0002043,2]
[379707677,1755378643918,-480.0,0.0002043,2]
[379707679,1755378643927,-1031.75,0.0002043,2]
[379707681,1755378643936,-527.31,0.0002043,2]
[379707683,1755378643946,-480.0,0.0002043,2]
[379707685,1755378643955,-716.31,0.0002043,2]
[379707687,1755378643964,-501.29,0.0002043,2]
[379707689,1755378643973,-480.0,0.0002043,2]
[379707691,1755378643983,-480.0,0.0002043,2]
[379707693,1755378643992,-538.61,0.0002043,2]
[379707695,1755378644002,-480.0,0.0002043,2]
[379707697,1755378644011,-480.0,0.00020431,2]
[379707699,1755378644020,-480.0,0.00020431,2]
[379707701,1755378644030,-499.36,0.00020431,2]
[379707703,1755378644040,-607.9,0.00020431,2]
[379707705,1755378644049,-480.0,0.00020431,2]
[379707707,1755378644058,-1496.75,0.00020431,2]
[379707709,1755378644068,-1383.98,0.00020431,2]
[379707711,1755378644078,-460.0,0.00020431,2]
[379707713,1755378644087,-394.33146953,0.00020431,2]
[379707715,1755378644097,-366.84940194,0.00020431,2]
[379707717,1755378644107,-546.53,0.00020431,2]
[379707719,1755378644117,-480.0,0.00020431,2]
[379707721,1755378644127,-552.88,0.00020431,2]
[379707723,1755378644136,-480.0,0.00020431,2]
[379707725,1755378644146,-480.0,0.00020431,2]
[379707727,1755378644156,-266.07865685,0.00020431,2]
[379707729,1755378644165,-701.72,0.00020431,2]
[379707745,1755378644309,-972.66,0.00020431,2]
[379707748,1755378644330,-662.99,0.00020431,2]
[379707751,1755378644351,-480.0,0.00020431,2]
[379707753,1755378644368,-1692.89,0.00020431,2]
[379707755,1755378644377,-506.46,0.00020431,2]
[379707757,1755378644388,-480.0,0.00020431,2]
[379707759,1755378644397,-999.65,0.00020431,2]
[379707761,1755378644408,-707.78,0.00020431,2]
[379707763,1755378644417,-1230.18,0.00020431,2]
[379707765,1755378644426,-675.7,0.00020431,2]
[379707767,1755378644436,-1000.0,0.00020431,2]
[379707769,1755378644446,-1000.0,0.00020431,2]
[379707771,1755378644456,-1000.0,0.00020431,2]
[379707773,1755378644465,-1000.0,0.00020431,2]
[379707775,1755378644474,-1000.0,0.00020431,2]
[379707777,1755378644483,-480.0,0.00020431,2]
[379707779,1755378644492,-976.25,0.00020431,2]
[379707781,1755378644502,-480.0,0.00020431,2]
[379707783,1755378644511,-808.37,0.00020431,2]
[379707785,1755378644520,-1079.88,0.00020431,2]
[379707787,1755378644529,-813.01,0.00020431,2]
[379707789,1755378644538,-1127.25,0.00020431,2]
[379707791,1755378644547,-507.3,0.00020431,2]
[379707793,1755378644558,-480.0,0.00020431,2]
[379707795,1755378644567,-10492.66,0.00020431,2]
[379707797,1755378644576,-507.32,0.00020431,2]
[379707799,1755378644585,-1077.18,0.00020431,2]
[379707801,1755378644594,-1295.42,0.00020431,2]
[379707803,1755378644604,-480.0,0.00020431,2]
[379707805,1755378644613,-480.0,0.00020431,2]
[379707807,1755378644623,-3773.91,0.00020431,2]
[379707809,1755378644632,-480.0,0.00020431,2]
[379707811,1755378644642,-480.0,0.00020431,2]
[379707813,1755378644651,-480.0,0.00020431,2]
[379707815,1755378644660,-2278.53,0.00020431,2]
[379707817,1755378644669,-277.867342,0.00020432,2]
[379707819,1755378644678,-391.222683,0.00020432,2]
[379707821,1755378644687,-391.222683,0.00020432,2]
[379707823,1755378644702,-391.222683,0.00020432,2]
[379707825,1755378644712,-391.222683,0.00020432,2]
[379707827,1755378644722,-480.0,0.00020432,2]
[379707829,1755378644734,-151.0,0.00020432,2]
[379707830,1755378644745,-151.0,0.00020432,2]
[379707832,1755378644762,-480.0,0.00020432,2]
[379707834,1755378644778,-776.5,0.00020432,2]
[379707836,1755378644788,-1113.24,0.00020432,2]
[379707838,1755378644798,-480.0,0.00020432,2]
[379707840,1755378644808,-480.0,0.00020432,2]
[379707842,1755378644817,-480.0,0.00020432,2]
[379707844,1755378644827,-480.0,0.00020432,2]
[379707846,1755378644836,-480.0,0.00020432,2]
[379707848,1755378644844,-480.0,0.00020432,2]
[379707850,1755378644853,-400.0,0.00020432,2]
[379707852,1755378644861,-635.53,0.00020432,2]
[379707854,1755378644870,-444.93878312,0.00020432,2]
[379707855,1755378644879,-480.0,0.00020432,2]
[379707857,1755378644888,-480.0,0.00020432,2]
[379707859,1755378644897,-629.46,0.00020432,2]
[379707861,1755378644906,-480.0,0.00020432,2]
[379707863,1755378644915,-763.96,0.00020432,2]
[379707865,1755378644925,-480.0,0.00020432,2]
[379707867,1755378644934,-480.0,0.00020432,2]
[379707869,1755378644943,-208.17525389,0.00020432,2]
[379707871,1755378644952,-915.59,0.00020432,2]
[379707873,1755378644961,-480.0,0.00020432,2]
[379707875,1755378644970,-480.0,0.00020432,2]
[379707877,1755378644979,-342.19588152,0.00020432,2]
[379707879,1755378644988,-480.0,0.00020432,2]
[379707881,1755378644997,-480.0,0.00020432,2]
[379707883,1755378645006,-480.0,0.00020432,2]
[379707885,1755378645016,-480.0,0.00020432,2]
[379707886,1755378645025,-570.71,0.00020432,2]
[379707888,1755378645035,-480.0,0.00020432,2]
[379707891,1755378645046,-480.0,0.00020432,2]
[379707893,1755378645056,-480.0,0.00020432,2]
[379707894,1755378645066,-480.0,0.00020432,2]
[379707896,1755378645075,-460.0,0.00020432,2]
[379707899,1755378645085,-821.62,0.00020432,2]
[379707900,1755378645095,-480.0,0.00020432,2]
[379707902,1755378645105,-480.0,0.00020432,2]
[379707904,1755378645114,-480.0,0.00020432,2]
[379707906,1755378645123,-480.0,0.00020432,2]
[379707908,1755378645133,-480.0,0.00020432,2]
[379707910,1755378645142,-480.0,0.00020432,2]
[379707912,1755378645151,-801.95,0.00020432,2]
[379707915,1755378645161,-480.0,0.00020432,2]
[379707917,1755378645170,-480.0,0.00020432,2]
[379707919,1755378645179,-1427.21,0.00020432,2]
[379707920,1755378645189,-480.0,0.00020432,2]
[379707922,1755378645198,-480.0,0.00020432,2]
[379707924,1755378645207,-480.0,0.00020432,2]
[379707926,1755378645217,-498.44,0.00020432,2]
[379707928,1755378645226,-480.0,0.00020432,2]
[379707930,1755378645235,-1364.64,0.00020432,2]
[379707932,1755378645243,-499.61,0.00020432,2]
[379707934,1755378645254,-791.14,0.00020432,2]
[379707936,1755378645263,-1006.36,0.00020432,2]
[379707938,1755378645272,-480.0,0.00020432,2]
[379707940,1755378645281,-480.0,0.00020432,2]
[379707942,1755378645291,-480.0,0.00020432,2]
[379707944,1755378645300,-607.932549,0.00020432,2]
[379707946,1755378645309,-607.932549,0.00020432,2]
[379707948,1755378645318,-480.0,0.00020432,2]
[379707949,1755378645327,-480.0,0.00020432,2]
[379707951,1755378645336,-637.96,0.00020432,2]
[379707953,1755378645346,-557.19,0.00020432,2]
[379707955,1755378645357,-10333.25,0.00020432,2]
[379707957,1755378645369,-480.0,0.00020432,2]
[379707959,1755378645378,-918.72,0.00020432,2]
[379707961,1755378645387,-400.0,0.00020432,2]
[379707963,1755378645396,-3667.41,0.00020432,2]
[379707965,1755378645407,-616.29,0.00020432,2]
[379707967,1755378645416,-480.0,0.00020432,2]
[379707969,1755378645425,-1584.87,0.00020432,2]
[379707971,1755378645436,-673.53,0.00020432,2]
[379707973,1755378645445,-480.0,0.00020432,2]
[379707975,1755378645454,-480.0,0.00020432,2]
[379707976,1755378645465,-480.0,0.00020432,2]
[379707978,1755378645475,-480.0,0.00020432,2]
[379707980,1755378645484,-1811.84,0.00020432,2]
[379707982,1755378645494,-480.0,0.00020432,2]
[379707984,1755378645504,-480.0,0.00020432,2]
[379707986,1755378645513,-480.0,0.00020432,2]
[379707988,1755378645522,-1000.0,0.00020432,2]
[379707990,1755378645531,-270.72,0.00020432,2]
[379707992,1755378645541,-480.0,0.00020432,2]
[379707994,1755378645550,-151.0,0.00020432,2]
[379707996,1755378645560,-480.0,0.00020432,2]
[379707998,1755378645569,-480.0,0.00020432,2]
[379708000,1755378645578,-151.0,0.00020432,2]
[379708002,1755378645587,-480.0,0.00020432,2]
[379708004,1755378645596,-480.0,0.00020432,2]
[379708006,1755378645605,-480.0,0.00020432,2]
[379708008,1755378645614,-480.0,0.00020432,2]
[379708010,1755378645623,-482.18,0.00020432,2]
[379708011,1755378645632,-480.0,0.00020432,2]
[379708013,1755378645641,-480.0,0.00020432,2]
[379708015,1755378645650,-480.0,0.00020432,2]
[379708017,1755378645660,-151.0,0.00020432,2]
[379708019,1755378645669,-480.0,0.00020432,2]
[379708021,1755378645678,-384.19027929,0.00020432,2]
[379708023,1755378645687,-480.0,0.00020432,2]
[379708025,1755378645697,-480.0,0.00020432,2]
[379708027,1755378645710,-480.0,0.00020432,2]
[379708029,1755378645719,-7890.83,0.00020432,2]
[379708031,1755378645729,-643.18,0.00020432,2]
[379708033,1755378645739,-400.0,0.00020432,2]
[379708035,1755378645748,-480.0,0.00020432,2]
[379708037,1755378645757,-480.0,0.00020432,2]
[379708038,1755378645766,-151.0,0.00020432,2]
[379708040,1755378645775,-3958.6,0.00020432,2]
[379708042,1755378645784,-480.0,0.00020432,2]
[379708044,1755378645793,-151.0,0.00020432,2]
[379708046,1755378645802,-480.0,0.00020432,2]
[379708048,1755378645811,-480.0,0.00020432,2]
[379708050,1755378645820,-480.0,0.00020432,2]
[379708052,1755378645829,-480.0,0.00020432,2]
[379708054,1755378645839,-480.0,0.00020432,2]
[379708056,1755378645848,-480.0,0.00020432,2]
[379708058,1755378645859,-500.0,0.00020432,2]
[379708060,1755378645868,-480.0,0.00020432,2]
[379708062,1755378645877,-543.34,0.00020432,2]
[379708063,1755378645886,-480.0,0.00020432,2]
[379708064,1755378645895,-480.0,0.00020432,2]
[379708065,1755378645904,-480.0,0.00020432,2]
[379708066,1755378645913,-480.0,0.00020432,2]
[379708067,1755378645922,-480.0,0.00020432,2]
[379708068,1755378645931,-480.0,0.00020432,2]
[379708069,1755378645941,-480.0,0.00020432,2]
[379708070,1755378645950,-612.96,0.00020432,2]
[379708071,1755378645959,-480.0,0.00020432,2]
[379708072,1755378645968,-391.222683,0.00020433,2]
[379708073,1755378645977,-391.222683,0.00020433,2]
[379708074,1755378645988,-151.0,0.00020433,2]
[379708075,1755378645997,-151.0,0.00020433,2]
[379708076,1755378646006,-607.932549,0.00020433,2]
[379708077,1755378646015,-607.932549,0.00020433,2]
[379708078,1755378646024,-219.040316,0.00020433,2]
[379708079,1755378646033,-528.38334358,0.00020453,2]
[379708081,1755378646042,-12681.6255076,0.00020453,2]
[379708083,1755378646052,-160.0,0.00020453,2]
[379708085,1755378646061,-215.68093138,0.00020453,2]
[379708087,1755378646071,-843.58077381,0.00020453,2]
[379708089,1755378646080,-232.11368524,0.00020453,2]
[379708091,1755378646089,-417.15472785,0.00020453,2]
[379708093,1755378646098,-462.1417622,0.00020453,2]
[379708095,1755378646107,-160.0,0.00020453,2]
[379708097,1755378646116,-500.0,0.00020473,2]
[379708099,1755378646125,-312.46504885,0.00020473,2]
[379708101,1755378646134,-500.0,0.00020473,2]
[379708102,1755378646146,-500.0,0.00020473,2]
[379708105,1755378646156,-151.0,0.000205,4]
[379708107,1755378646166,-153.0,0.000205,2]
[379708109,1755378646176,-153.0,0.000205,2]
[379708111,1755378646186,-1430.25074745,0.00020532,2]
[379708112,1755378646195,-151.0,0.00020536,2]
[379708114,1755378646205,-167.030691,0.00020536,2]
[379708116,1755378646214,-607.932549,0.00020536,2]
[379708118,1755378646223,-607.932549,0.00020536,2]
[379708121,1755378646234,-200.0,0.00020559,20]
[379708123,1755378646245,-200.0,0.00020559,20]
[379708125,1755378646254,-200.0,0.00020559,20]
[379708127,1755378646264,-200.0,0.00020559,20]
[379708129,1755378646274,-200.0,0.00020559,20]
[379708131,1755378646284,-200.0,0.00020559,20]
[379708133,1755378646293,-200.0,0.00020559,20]
[379708135,1755378646304,-200.0,0.00020559,20]
[379708137,1755378646314,-200.0,0.00020559,20]
[379708139,1755378646324,-200.0,0.00020559,20]
[379708141,1755378646333,-600.0,0.00020559,20]
[379708143,1755378646342,-210.019,0.00020583,2]
[379708145,1755378646351,-151.0,0.000206,4]
[379708147,1755378646366,-168.0,0.00020685,2]
[379708149,1755378646375,-1430.25074745,0.0002069,2]
[379708150,1755378646383,-1000.0,0.00020699,2]
[379708151,1755378646392,-462.1417622,0.00020699,3]
[379708152,1755378646402,-417.15472785,0.00020699,3]
[379708153,1755378646413,-151.0,0.000207,4]
[379708154,1755378646423,-153.0,0.000207,2]
[379708155,1755378646434,-500.0,0.000207,2]
[379708156,1755378646444,-500.0,0.000207,2]
[379708157,1755378646454,-500.0,0.000207,10]
[379708158,1755378646463,-500.0,0.000207,2]
[379708159,1755378646472,-500.0,0.000207,10]
[379708160,1755378646481,-828.33,0.00020703,2]
[379708161,1755378646491,-735.69,0.00020703,2]
[379708162,1755378646500,-759.42,0.00020703,2]
[379708163,1755378646509,-480.0,0.00020703,2]
[379708164,1755378646518,-2163.86,0.00020703,2]
[379708165,1755378646528,-3039.7,0.00020703,2]
[379708166,1755378646537,-480.0,0.00020703,2]
[379708167,1755378646546,-480.0,0.00020703,2]
[379708168,1755378646555,-2143.46,0.00020703,2]
[379708169,1755378646564,-714.21,0.00020703,2]
[379708170,1755378646573,-734.99,0.00020703,2]
[379708171,1755378646583,-1028.98,0.00020703,2]
[379708173,1755378646592,-2948.88,0.00020703,2]
[379708175,1755378646601,-567.77,0.00020703,2]
[379708177,1755378646611,-480.0,0.00020703,2]
[379708179,1755378646620,-1034.63,0.00020703,2]
[379708181,1755378646629,-230.75847652,0.00020703,2]
[379708183,1755378646640,-439.33824322,0.00020704,2]
[379708185,1755378646649,-480.0,0.00020704,2]
[379708187,1755378646659,-480.0,0.00020704,2]
[379708195,1755378646704,-521.85,0.00020704,2]
[379708197,1755378646713,-480.0,0.00020704,2]
[379708199,1755378646722,-480.0,0.00020704,2]
[379708201,1755378646731,-480.0,0.00020704,2]
[379708203,1755378646740,-480.0,0.00020704,2]
[379708205,1755378646749,-480.0,0.00020704,2]
[379708207,1755378646758,-480.0,0.00020704,2]
[379708209,1755378646767,-480.0,0.00020704,2]
[379708211,1755378646776,-480.0,0.00020704,2]
[379708213,1755378646785,-1147.91,0.00020704,2]
[379708215,1755378646794,-480.0,0.00020704,2]
[379708217,1755378646803,-1963.71,0.00020704,2]
[379708219,1755378646813,-491.78,0.00020704,2]
[379708221,1755378646822,-1025.51,0.00020704,2]
[379708223,1755378646831,-609.48,0.00020704,2]
[379708225,1755378646840,-480.0,0.00020704,2]
[379708227,1755378646848,-480.0,0.00020704,2]
[379708229,1755378646857,-480.0,0.00020704,2]
[379708231,1755378646866,-694.04,0.00020704,2]
[379708233,1755378646875,-480.0,0.00020704,2]
[379708235,1755378646884,-1254.86,0.00020704,2]
[379708237,1755378646893,-480.0,0.00020704,2]
[379708239,1755378646901,-480.0,0.00020704,2]
[379708241,1755378646910,-681.95,0.00020704,2]
[379708243,1755378646919,-5662.57,0.00020704,2]
[379708245,1755378646928,-480.0,0.00020704,2]
[379708247,1755378646937,-947.65,0.00020704,2]
[379708249,1755378646946,-608.72,0.00020704,2]
[379708251,1755378646955,-783.72,0.00020704,2]
[379708253,1755378646964,-480.0,0.00020704,2]
[379708254,1755378646973,-718.96,0.00020704,2]
[379708256,1755378646982,-483.06,0.00020704,2]
[379708258,1755378646992,-172.224859,0.00020704,2]
[379708260,1755378647001,-172.224859,0.00020704,2]
[379708262,1755378647010,-480.0,0.00020704,2]
[379708264,1755378647019,-480.0,0.00020704,2]
[379708266,1755378647028,-901.75,0.00020704,2]
[379708268,1755378647037,-744.84,0.00020704,2]
[379708270,1755378647046,-1107.05,0.00020704,2]
[379708272,1755378647056,-480.0,0.00020704,2]
[379708275,1755378647065,-480.0,0.00020704,2]
[379708277,1755378647075,-739.59,0.00020704,2]
[379708278,1755378647084,-480.0,0.00020704,2]
[379708281,1755378647093,-4060.46,0.00020704,2]
[379708283,1755378647103,-151.0,0.00020704,2]
[379708284,1755378647112,-480.0,0.00020704,2]
[379708286,1755378647121,-812.0,0.00020704,2]
[379708288,1755378647130,-480.0,0.00020704,2]
[379708290,1755378647139,-480.0,0.00020704,2]
[379708293,1755378647149,-480.0,0.00020704,2]
[379708295,1755378647158,-374.58367668,0.00020704,2]
[379708297,1755378647167,-506.09,0.00020704,2]
[379708298,1755378647176,-1031.75,0.00020704,2]
[379708300,1755378647185,-527.31,0.00020704,2]
[379708302,1755378647194,-480.0,0.00020704,2]
[379708304,1755378647203,-716.31,0.00020704,2]
[379708306,1755378647212,-501.29,0.00020704,2]
[379708308,1755378647221,-480.0,0.00020704,2]
[379708310,1755378647230,-480.0,0.00020704,2]
[379708312,1755378647239,-538.61,0.00020704,2]
[379708314,1755378647248,-480.0,0.00020704,2]
[379708316,1755378647258,-480.0,0.00020705,2]
[379708318,1755378647267,-480.0,0.00020705,2]
[379708320,1755378647276,-499.36,0.00020705,2]
[379708322,1755378647285,-607.9,0.00020705,2]
[379708324,1755378647294,-480.0,0.00020705,2]
[379708326,1755378647303,-1496.75,0.00020705,2]
[379708328,1755378647312,-1383.98,0.00020705,2]
[379708330,1755378647321,-546.53,0.00020705,2]
[379708332,1755378647330,-480.0,0.00020705,2]
[379708334,1755378647339,-552.88,0.00020705,2]
[379708336,1755378647348,-480.0,0.00020705,2]
[379708338,1755378647359,-480.0,0.00020705,2]
[379708340,1755378647369,-701.72,0.00020705,2]
[379708342,1755378647378,-151.0,0.00020705,2]
[379708344,1755378647387,-151.0,0.00020705,2]
[379708346,1755378647396,-972.66,0.00020705,2]
[379708348,1755378647406,-662.99,0.00020705,2]
[379708350,1755378647415,-480.0,0.00020705,2]
[379708352,1755378647425,-1692.89,0.00020705,2]
[379708354,1755378647433,-506.46,0.00020705,2]
[379708356,1755378647443,-480.0,0.00020705,2]
[379708358,1755378647452,-999.65,0.00020705,2]
[379708360,1755378647461,-707.78,0.00020705,2]
[379708362,1755378647470,-1230.18,0.00020705,2]
[379708364,1755378647479,-675.7,0.00020705,2]
[379708366,1755378647487,-480.0,0.00020705,2]
[379708367,1755378647497,-976.25,0.00020705,2]
[379708369,1755378647507,-480.0,0.00020705,2]
[379708372,1755378647517,-808.37,0.00020705,2]
[379708374,1755378647527,-1079.88,0.00020705,2]
[379708375,1755378647536,-151.0,0.00020705,2]
[379708377,1755378647545,-813.01,0.00020705,2]
[379708379,1755378647555,-1127.25,0.00020705,2]
[379708381,1755378647565,-507.3,0.00020705,2]
[379708383,1755378647574,-480.0,0.00020705,2]
[379708385,1755378647584,-10492.66,0.00020705,2]
[379708387,1755378647594,-151.0,0.00020705,2]
[379708389,1755378647604,-507.32,0.00020705,2]
[379708392,1755378647613,-1077.18,0.00020705,2]
[379708394,1755378647623,-1295.42,0.00020705,2]
[379708396,1755378647632,-480.0,0.00020705,2]
[379708397,1755378647642,-480.0,0.00020705,2]
[379708400,1755378647651,-3773.91,0.00020705,2]
[379708402,1755378647661,-248.180497,0.00020705,2]
[379708404,1755378647671,-480.0,0.00020705,2]
[379708405,1755378647680,-248.180497,0.00020705,2]
[379708408,1755378647689,-480.0,0.00020705,2]
[379708410,1755378647699,-480.0,0.00020705,2]
[379708411,1755378647709,-219.040316,0.00020705,2]
[379708413,1755378647720,-2278.53,0.00020705,2]
[379708415,1755378647730,-391.222683,0.00020706,2]
[379708417,1755378647740,-391.222683,0.00020706,2]
[379708419,1755378647749,-480.0,0.00020706,2]
[379708421,1755378647758,-151.0,0.00020706,2]
[379708423,1755378647767,-440.0,0.00020706,2]
[379708425,1755378647777,-776.5,0.00020706,2]
[379708427,1755378647786,-1113.24,0.00020706,2]
[379708429,1755378647796,-480.0,0.00020706,2]
[379708431,1755378647805,-480.0,0.00020706,2]
[379708433,1755378647814,-480.0,0.00020706,2]
[379708435,1755378647823,-480.0,0.00020706,2]
[379708437,1755378647833,-480.0,0.00020706,2]
[379708439,1755378647842,-480.0,0.00020706,2]
[379708441,1755378647851,-635.53,0.00020706,2]
[379708443,1755378647862,-480.0,0.00020706,2]
[379708445,1755378647871,-480.0,0.00020706,2]
[379708447,1755378647882,-629.46,0.00020706,2]
[379708449,1755378647891,-480.0,0.00020706,2]
[379708451,1755378647901,-763.96,0.00020706,2]
[379708454,1755378647910,-480.0,0.00020706,2]
[379708456,1755378647920,-280.0,0.00020706,2]
[379708458,1755378647930,-915.59,0.00020706,2]
[379708460,1755378647940,-480.0,0.00020706,2]
[379708462,1755378647949,-480.0,0.00020706,2]
[379708464,1755378647958,-480.0,0.00020706,2]
[379708466,1755378647968,-463.79630478,0.00020706,2]
[379708468,1755378647978,-440.0,0.00020706,2]
[379708470,1755378647987,-480.0,0.00020706,2]
[379708472,1755378647996,-151.0,0.00020706,2]
[379708474,1755378648005,-570.71,0.00020706,2]
[379708476,1755378648014,-480.0,0.00020706,2]
[379708478,1755378648024,-480.0,0.00020706,2]
[379708480,1755378648034,-480.0,0.00020706,2]
[379708482,1755378648043,-480.0,0.00020706,2]
[379708484,1755378648053,-821.62,0.00020706,2]
[379708486,1755378648063,-480.0,0.00020706,2]
[379708488,1755378648073,-433.62589241,0.00020706,2]
[379708490,1755378648082,-480.0,0.00020706,2]
[379708492,1755378648091,-151.0,0.00020706,2]
[379708494,1755378648101,-480.0,0.00020706,2]
[379708496,1755378648111,-480.0,0.00020706,2]
[379708498,1755378648120,-480.0,0.00020706,2]
[379708500,1755378648130,-801.95,0.00020706,2]
[379708502,1755378648140,-480.0,0.00020706,2]
[379708504,1755378648149,-480.0,0.00020706,2]
[379708506,1755378648159,-480.0,0.00020706,2]
[379708508,1755378648170,-1427.21,0.00020706,2]
[379708510,1755378648180,-480.0,0.00020706,2]
[379708512,1755378648189,-480.0,0.00020706,2]
[379708514,1755378648198,-498.44,0.00020706,2]
[379708516,1755378648208,-480.0,0.00020706,2]
[379708518,1755378648217,-1364.64,0.00020706,2]
[379708520,1755378648227,-791.14,0.00020706,2]
[379708522,1755378648236,-499.61,0.00020706,2]
[379708524,1755378648246,-1006.36,0.00020706,2]
[379708526,1755378648255,-480.0,0.00020706,2]
[379708529,1755378648266,-480.0,0.00020706,2]
[379708531,1755378648275,-480.0,0.00020706,2]
[379708533,1755378648285,-607.932549,0.00020706,2]
[379708535,1755378648294,-607.932549,0.00020706,2]
[379708537,1755378648304,-480.0,0.00020706,2]
[379708539,1755378648313,-151.0,0.00020706,2]
[379708541,1755378648322,-480.0,0.00020706,2]
[379708543,1755378648331,-637.96,0.00020706,2]
[379708545,1755378648340,-557.19,0.00020706,2]
[379708546,1755378648349,-10333.25,0.00020706,2]
[379708548,1755378648362,-480.0,0.00020706,2]
[379708551,1755378648372,-918.72,0.00020706,2]
[379708553,1755378648382,-3667.41,0.00020706,2]
[379708555,1755378648391,-616.29,0.00020706,2]
[379708557,1755378648402,-480.0,0.00020706,2]
[379708559,1755378648411,-1584.87,0.00020706,2]
[379708561,1755378648421,-673.53,0.00020706,2]
[379708563,1755378648431,-480.0,0.00020706,2]
[379708565,1755378648444,-480.0,0.00020706,2]
[379708567,1755378648454,-400.0,0.00020706,2]
[379708569,1755378648463,-480.0,0.00020706,2]
[379708571,1755378648474,-1811.84,0.00020706,2]
[379708573,1755378648484,-480.0,0.00020706,2]
[379708575,1755378648493,-480.0,0.00020706,2]
[379708577,1755378648503,-480.0,0.00020706,2]
[379708579,1755378648513,-480.0,0.00020706,2]
[379708581,1755378648522,-480.0,0.00020706,2]
[379708583,1755378648533,-434.1953514,0.00020706,2]
[379708585,1755378648543,-480.0,0.00020706,2]
[379708587,1755378648553,-480.0,0.00020706,2]
[379708589,1755378648563,-480.0,0.00020706,2]
[379708591,1755378648572,-480.0,0.00020706,2]
[379708593,1755378648582,-482.18,0.00020706,2]
[379708595,1755378648591,-480.0,0.00020706,2]
[379708597,1755378648601,-480.0,0.00020706,2]
[379708599,1755378648611,-440.0,0.00020706,2]
[379708601,1755378648621,-167.455912,0.00020706,2]
[379708603,1755378648631,-480.0,0.00020706,2]
[379708606,1755378648641,-172.224859,0.00020706,2]
[379708607,1755378648650,-172.224859,0.00020706,2]
[379708610,1755378648660,-480.0,0.00020706,2]
[379708612,1755378648669,-402.82856911,0.00020706,2]
[379708614,1755378648679,-326.17429954,0.00020706,2]
[379708616,1755378648690,-7890.83,0.00020706,2]
[379708618,1755378648700,-643.18,0.00020706,2]
[379708620,1755378648710,-480.0,0.00020706,2]